bitfinex/quotes_BTCUSD_20250131
["timestamp","ask_amount","ask_price","bid_price","bid_amount"]
[1738359915123,2.07063676,101950.0,101940.0,1.5e-07]
[1738359915335,0.131,101930.0,101920.0,1.4e-07]
[1738359915551,1.51016634,101930.0,101920.0,2.1e-07]
[1738359915730,1.56076852,101930.0,101920.0,2.1e-07]
[1738359916557,1.71798123,101930.0,101920.0,2.1e-07]
[1738359916999,1.70128732,101930.0,101920.0,2.1e-07]
[1738359917625,1.71028732,101930.0,101920.0,0.00100021]
[1738359917834,1.70336732,101930.0,101920.0,0.00100021]
[1738359918037,1.71028732,101930.0,101920.0,0.00100021]
[1738359918457,1.81974756,101930.0,101920.0,0.00100021]
[1738359918661,1.78583929,101930.0,101920.0,0.00100021]
[1738359918865,1.81575929,101930.0,101920.0,0.00100021]
[1738359919070,1.79575929,101930.0,101920.0,0.00100021]
[1738359919497,1.82274756,101930.0,101920.0,0.00100021]
[1738359919694,1.92010432,101930.0,101920.0,0.00100021]
[1738359919900,1.93965674,101930.0,101920.0,0.00100021]
[1738359920084,1.93965674,101930.0,101920.0,2.1e-07]
[1738359920317,1.96327065,101930.0,101920.0,2.1e-07]
[1738359920732,0.10994129,101910.0,101890.0,0.0828]
[1738359920911,0.57304616,101900.0,101890.0,0.08284954]
[1738359921148,0.60003443,101900.0,101890.0,0.08284954]
[1738359921367,0.62364834,101900.0,101890.0,4.954e-05]
[1738359922191,0.88358963,101900.0,101890.0,4.954e-05]
[1738359922783,0.88458963,101900.0,101890.0,4.954e-05]
[1738359923083,0.93454888,101900.0,101890.0,4.954e-05]
[1738359923844,0.94146888,101900.0,101890.0,4.954e-05]
[1738359926876,0.96446888,101900.0,101890.0,4.954e-05]
[1738359927059,0.97431035,101900.0,101890.0,4.954e-05]
[1738359927292,0.95069644,101900.0,101890.0,4.954e-05]
[1738359927802,0.62209644,101900.0,101890.0,4.954e-05]
[1738359928504,0.64571035,101900.0,101890.0,4.954e-05]
[1738359929140,0.62209644,101900.0,101890.0,4.954e-05]
[1738359929337,0.61517644,101900.0,101890.0,4.954e-05]
[1738359929582,0.62209644,101900.0,101890.0,4.954e-05]
[1738359932258,0.57210817,101900.0,101890.0,4.954e-05]
[1738359933319,0.56518817,101900.0,101890.0,4.954e-05]
[1738359933534,0.57210817,101900.0,101890.0,4.954e-05]
[1738359933751,0.57210817,101900.0,101890.0,0.00030595]
[1738359934847,0.60516688,101900.0,101890.0,0.00030595]
[1738359935075,0.66295515,101900.0,101890.0,0.00030595]
[1738359935284,0.63596688,101900.0,101890.0,0.00030595]
[1738359936100,0.63496688,101900.0,101890.0,0.00030595]
[1738359936722,0.65858079,101900.0,101890.0,0.00030595]
[1738359936933,0.66558079,101900.0,101890.0,0.00130595]
[1738359937142,0.66858079,101900.0,101890.0,0.00130595]
[1738359937350,0.64496688,101900.0,101890.0,0.00130595]
[1738359937984,0.72496688,101900.0,101890.0,0.00130595]
[1738359938190,0.64538817,101900.0,101890.0,0.00130595]
[1738359938397,0.57934892,101900.0,101890.0,0.00130595]
[1738359938509,0.38114892,101900.0,101890.0,0.00130595]
[1738359938923,0.53114892,101900.0,101890.0,0.00130595]
[1738359939134,0.42422892,101900.0,101890.0,0.00130595]
[1738359939384,0.43114892,101900.0,101890.0,0.00130595]
[1738359939581,0.52850568,101900.0,101890.0,0.00130595]
[1738359941183,0.25444616,101900.0,101890.0,0.08110595]
[1738359941426,0.157203,101900.0,101890.0,0.27462295]
[1738359941632,0.01,101900.0,101890.0,0.27462295]
[1738359942287,0.01,101900.0,101890.0,0.57700032]
[1738359942513,0.13466921,101910.0,101900.0,0.274803]
[1738359942726,0.13466921,101910.0,101900.0,0.37215976]
[1738359942931,0.13466921,101910.0,101900.0,0.40253623]
[1738359943778,0.13566921,101910.0,101900.0,0.41153623]
[1738359944188,0.13566921,101910.0,101900.0,0.41553623]
[1738359945097,0.13566921,101910.0,101900.0,0.58853623]
[1738359945366,0.001,101910.0,101900.0,0.81515676]
[1738359945478,0.0001221,101920.0,101910.0,0.211488]
[1738359945680,0.0001221,101920.0,101910.0,0.53650516]
[1738359945888,0.0001221,101920.0,101910.0,0.439262]
[1738359946524,0.0001221,101920.0,101910.0,0.484462]
[1738359946864,0.0001221,101920.0,101910.0,0.498462]
[1738359947275,0.97434652,101920.0,101910.0,0.498462]
[1738359948256,0.97434652,101920.0,101910.0,0.46808553]
[1738359948458,0.97434652,101920.0,101910.0,0.44508553]
[1738359952817,0.97434652,101920.0,101910.0,0.46488349]
[1738359958354,0.0001221,101920.0,101910.0,0.71450402]
[1738359959192,0.0001221,101950.0,101940.0,0.269545]
[1738359959374,0.0001221,101950.0,101940.0,0.3161191]
[1738359960453,0.00061053,101950.0,101940.0,0.3161191]
[1738359960641,0.00061053,101950.0,101940.0,0.58636226]
[1738359962636,1e-08,101950.0,101940.0,0.86497555]
[1738359962884,0.97422442,101980.0,101970.0,0.223502]
[1738359963034,0.000122,102000.0,101990.0,0.147073]
[1738359963035,0.97434642,102000.0,101990.0,0.147073]
[1738359963262,0.97434642,102000.0,101990.0,0.1480534]
[1738359963459,0.97434642,102000.0,101990.0,0.1710534]
[1738359963675,0.97434642,102000.0,101990.0,0.3210534]
[1738359963845,0.97434642,102000.0,101990.0,0.36747053]
[1738359964070,0.97434642,102000.0,101990.0,0.34447053]
[1738359964312,0.97434642,102000.0,101990.0,0.34452007]
[1738359964706,0.97434642,102000.0,101990.0,0.36408138]
[1738359964904,0.97534642,102000.0,101990.0,0.36408138]
[1738359965330,0.97434642,102000.0,101990.0,0.36408138]
[1738359965532,1.21864758,102000.0,101990.0,0.03161085]
[1738359965934,1.21864758,102000.0,101990.0,0.01204954]
[1738359967321,1.21864758,102000.0,101990.0,0.00304954]
[1738359967523,1.21864758,102000.0,101990.0,0.00404954]
[1738359969443,1.21864758,102000.0,101990.0,0.14812254]
[1738359969636,1.21864758,102000.0,101990.0,0.21887688]
[1738359969846,1.07158958,102000.0,101990.0,0.21887688]
[1738359970057,1.21864758,102000.0,101990.0,0.14812254]
[1738359970266,1.07158958,102000.0,101990.0,0.14812254]
[1738359970496,1.07158958,102000.0,101990.0,0.14712254]
[1738359970702,1.21864758,102000.0,101990.0,0.14712254]
[1738359971046,0.97434642,102000.0,101990.0,0.14712254]
[1738359972073,0.97434642,102000.0,101990.0,0.36777688]
[1738359972251,0.97434642,102000.0,101990.0,0.44767688]
[1738359972456,0.000122,102000.0,101990.0,0.69729741]
[1738359972663,0.000122,102000.0,101990.0,0.56792004]
[1738359973054,0.000122,102000.0,101990.0,0.57692004]
[1738359973687,0.000122,102000.0,101990.0,0.57892004]
[1738359974088,0.000122,102000.0,101990.0,0.57692004]
[1738359974449,0.000122,102000.0,101990.0,0.57492004]
[1738359974653,0.000122,102000.0,101990.0,0.58392004]
[1738359975805,0.97434642,102000.0,101990.0,0.58392004]
[1738359978178,0.97434642,102000.0,101990.0,0.59351149]
[1738359979702,0.000122,102000.0,101990.0,0.59351149]
[1738359980100,0.000122,102000.0,101990.0,0.75302228]
[1738359980309,0.0001219,102010.0,102000.0,0.170058]
[1738359980527,0.0001219,102010.0,102000.0,0.2915986]
[1738359980736,0.0001219,102010.0,102000.0,0.29061845]
[1738359981178,0.0001219,102010.0,102000.0,0.32074052]
[1738359981384,0.0001219,102010.0,102000.0,0.53951789]
[1738359981588,0.0001219,102010.0,102000.0,0.41014052]
[1738359982581,0.0001219,102010.0,102000.0,0.41914052]
[1738359983071,0.91616945,102020.0,102000.0,0.41914052]
[1738359983278,0.97434652,102030.0,102020.0,0.147029]
[1738359983489,0.97434652,102030.0,102020.0,0.19781166]
[1738359983666,1.12136152,102030.0,102020.0,0.19781166]
[1738359984285,0.97434652,102030.0,102020.0,0.19781166]
[1738359984489,1.21860468,102030.0,102020.0,0.05078266]
[1738359984865,1.07158968,102030.0,102020.0,0.19781166]
[1738359985067,1.21860468,102030.0,102020.0,0.19781166]
[1738359985446,1.21860468,102030.0,102020.0,0.05078266]
[1738359985650,1.21860468,102030.0,102020.0,0.05978266]
[1738359986279,1.21860468,102030.0,102020.0,0.009]
[1738359987843,1.21860468,102030.0,102020.0,0.012]
[1738359991340,1.21860468,102030.0,102020.0,0.159029]
[1738359992203,0.97434652,102030.0,102020.0,0.182029]
[1738359992545,0.97434652,102030.0,102020.0,0.18300909]
[1738359992748,0.97434652,102030.0,102020.0,0.28036585]
[1738359992949,0.97434652,102030.0,102020.0,0.42938576]
[1738359993167,0.97434652,102030.0,102020.0,0.45967468]
[1738359993807,0.97434652,102030.0,102020.0,0.45667468]
[1738359994003,0.97434652,102030.0,102020.0,0.46267468]
[1738359994505,0.97434652,102030.0,102020.0,0.45367468]
[1738359994666,0.97434652,102030.0,102020.0,0.48270095]
[1738359996268,0.97434652,102030.0,102020.0,0.57994411]
[1738359996399,0.97434652,102030.0,102020.0,0.58993232]
[1738359998211,0.0001221,102030.0,102020.0,0.58993232]
[1738360003543,0.97434652,102030.0,102020.0,0.58993232]
[1738360003957,0.97434652,102030.0,102020.0,0.49268916]
[1738360004520,0.97434652,102030.0,102020.0,0.57034536]
[1738360008154,0.97434652,102030.0,102020.0,0.49294536]
[1738360009264,0.97434652,102030.0,102020.0,0.46265644]
[1738360009719,1.12136152,102030.0,102020.0,0.46265644]
[1738360010276,1.12136152,102030.0,102020.0,0.03528247]
[1738360010277,1.21854603,102030.0,102020.0,0.03528247]
[1738360011183,1.21854603,102030.0,102020.0,0.0152562]
[1738360012014,1.21854603,102030.0,102020.0,0.0092562]
[1738360012417,1.26684603,102030.0,102020.0,0.0132562]
[1738360012583,1.26684603,102030.0,102020.0,0.0042562]
[1738360012937,1.26684603,102030.0,102020.0,0.0012562]
[1738360013490,0.29262161,102030.0,102020.0,0.0012562]
[1738360016592,0.24432161,102030.0,102020.0,0.0012562]
[1738360016928,0.24432161,102030.0,102020.0,0.1482852]
[1738360017131,0.24432161,102030.0,102020.0,0.09502639]
[1738360017391,0.24432161,102030.0,102020.0,0.0012562]
[1738360021073,0.24432161,102030.0,102020.0,0.1482852]
[1738360021299,6.345e-05,102030.0,102020.0,0.1482852]
[1738360022248,0.14707845,102030.0,102020.0,0.1492852]
[1738360022459,0.14707845,102030.0,102020.0,0.1482852]
[1738360022676,0.14707845,102030.0,102020.0,0.25005499]
[1738360022910,0.14707845,102030.0,102020.0,0.27305499]
[1738360023088,0.14707845,102030.0,102020.0,0.27605499]
[1738360023277,6.345e-05,102030.0,102020.0,0.27605499]
[1738360023484,0.14707845,102030.0,102020.0,0.27605499]
[1738360024194,6.345e-05,102030.0,102020.0,0.27605499]
[1738360024820,6.345e-05,102030.0,102020.0,0.42605499]
[1738360026612,6.345e-05,102030.0,102020.0,0.43587151]
[1738360030986,0.0001219,102060.0,102050.0,0.146986]
[1738360031444,0.97422442,102070.0,102060.0,0.296972]
[1738360031848,0.08772577,102080.0,102070.0,0.319957]
[1738360032267,0.08821481,102080.0,102070.0,0.319957]
[1738360032471,0.08821481,102080.0,102070.0,0.34327429]
[1738360032648,0.08321481,102080.0,102070.0,0.34327429]
[1738360033327,0.00048904,102080.0,102070.0,0.34327429]
[1738360033865,0.00048904,102080.0,102070.0,0.34427429]
[1738360035872,0.00048904,102080.0,102070.0,0.42107429]
[1738360036421,0.00048904,102080.0,102070.0,0.4310687]
[1738360037852,0.00048904,102080.0,102070.0,0.3542687]
[1738360038483,0.000122,102100.0,102090.0,0.296929]
[1738360038638,0.0001221,102110.0,102090.0,0.296929]
[1738360038639,0.0001221,102110.0,102100.0,0.373714]
[1738360038836,0.0154039,102120.0,102110.0,0.1469]
[1738360039040,0.0154039,102120.0,102110.0,0.14787919]
[1738360039536,0.0154039,102120.0,102110.0,0.26714316]
[1738360040056,0.0154039,102120.0,102110.0,0.41714316]
[1738360040310,0.0154039,102120.0,102110.0,0.32311499]
[1738360041132,0.0154039,102120.0,102110.0,0.17621499]
[1738360041331,0.01531494,102120.0,102110.0,0.18581046]
[1738360041555,1.13642536,102120.0,102110.0,0.16859547]
[1738360041762,1.13642536,102120.0,102110.0,0.17159547]
[1738360042069,1.13642536,102120.0,102110.0,0.159]
[1738360042509,1.13642536,102120.0,102110.0,0.163]
[1738360042879,1.13642536,102120.0,102110.0,0.159]
[1738360043085,1.13642536,102120.0,102110.0,0.15]
[1738360043290,1.23366852,102120.0,102110.0,0.162]
[1738360043467,1.27477358,102120.0,102110.0,0.012]
[1738360043667,1.23366852,102120.0,102110.0,0.003]
[1738360043874,1.23366852,102120.0,102110.0,0.012]
[1738360044082,1.23366852,102120.0,102110.0,0.003]
[1738360044503,1.23366852,102120.0,102110.0,0.01]
[1738360044703,0.146914,102100.0,102090.0,0.23627319]
[1738360044908,1.12113842,102100.0,102090.0,0.00971839]
[1738360045112,0.97422442,102100.0,102090.0,0.00971839]
[1738360045283,0.97422442,102100.0,102090.0,0.15971839]
[1738360045708,0.97422442,102100.0,102090.0,0.15664739]
[1738360046281,0.97422442,102100.0,102090.0,0.30664739]
[1738360046490,0.97422442,102100.0,102090.0,0.40400415]
[1738360046694,0.97422442,102100.0,102090.0,0.25707515]
[1738360047684,1.12113842,102100.0,102090.0,0.28611632]
[1738360047901,1.12113842,102100.0,102090.0,0.18875956]
[1738360048108,1.12113842,102100.0,102090.0,0.17909071]
[1738360048490,1.12113842,102100.0,102090.0,0.15904954]
[1738360048696,1.12113842,102100.0,102090.0,0.00904954]
[1738360049107,1.12113842,102100.0,102090.0,0.01504954]
[1738360049320,1.21838158,102100.0,102090.0,0.01504954]
[1738360050084,1.21838158,102100.0,102090.0,0.00904954]
[1738360051699,1.21838158,102100.0,102090.0,4.954e-05]
[1738360052059,1.21838158,102100.0,102090.0,0.00104954]
[1738360052266,1.21850348,102100.0,102090.0,0.00104954]
[1738360052992,0.97434632,102100.0,102090.0,0.00104954]
[1738360053486,1.12126032,102100.0,102090.0,0.00104954]
[1738360053892,0.97434632,102100.0,102090.0,0.15104954]
[1738360054162,0.97434632,102100.0,102090.0,0.22300089]
[1738360054455,1.12126032,102100.0,102090.0,0.22300089]
[1738360054894,1.21850348,102100.0,102090.0,0.15104954]
[1738360055100,1.12126032,102100.0,102090.0,0.15104954]
[1738360058676,0.97434632,102100.0,102090.0,0.15104954]
[1738360059318,1.12126032,102100.0,102090.0,0.15104954]
[1738360061383,1.21850348,102100.0,102090.0,0.15104954]
[1738360062004,1.25347112,102100.0,102090.0,0.00104954]
[1738360062207,1.21850348,102100.0,102090.0,0.00104954]
[1738360064067,1.29870348,102100.0,102090.0,0.00104954]
[1738360065059,1.29870348,102100.0,102090.0,0.00130553]
[1738360069422,1.12126032,102100.0,102090.0,0.00130553]
[1738360070026,1.12126032,102100.0,102090.0,0.14823453]
[1738360070266,1.12126032,102100.0,102090.0,0.22486608]
[1738360070498,0.97434632,102100.0,102090.0,0.22486608]
[1738360070915,0.97434632,102100.0,102090.0,0.37486608]
[1738360073310,0.0001219,102100.0,102090.0,0.37486608]
[1738360074335,0.0001219,102100.0,102090.0,0.37386608]
[1738360074541,0.0001219,102100.0,102090.0,0.37686608]
[1738360074744,0.0001219,102100.0,102090.0,0.38586608]
[1738360075920,0.1470359,102100.0,102090.0,0.40542686]
[1738360076118,0.1470359,102100.0,102090.0,0.18186631]
[1738360076336,0.1470359,102100.0,102090.0,0.16230553]
[1738360076544,0.24427906,102100.0,102090.0,0.16230553]
[1738360076741,0.24427906,102100.0,102090.0,0.01230553]
[1738360076945,0.23927906,102100.0,102090.0,0.01230553]
[1738360077910,0.23927906,102100.0,102090.0,0.00930553]
[1738360078122,0.23927906,102100.0,102090.0,0.00030553]
[1738360078328,0.23927906,102100.0,102090.0,0.00130553]
[1738360084515,0.23594906,102100.0,102090.0,0.00130553]
[1738360084874,0.342781,102110.0,102090.0,0.15130553]
[1738360085216,0.146914,102100.0,102090.0,0.29823453]
[1738360085439,0.146914,102100.0,102090.0,0.2980006]
[1738360085682,0.146914,102100.0,102090.0,0.1510716]
[1738360085881,0.146914,102100.0,102090.0,0.2980006]
[1738360086174,0.146914,102100.0,102090.0,0.2970006]
[1738360086331,0.146914,102100.0,102090.0,0.1500716]
[1738360086532,0.146914,102100.0,102090.0,0.3060006]
[1738360086887,0.146914,102100.0,102090.0,0.39873616]
[1738360087091,0.146914,102100.0,102090.0,0.39973616]
[1738360087278,0.146914,102100.0,102090.0,0.39073616]
[1738360087423,0.146914,102100.0,102090.0,0.38973616]
[1738360087624,0.146914,102100.0,102090.0,0.39073616]
[1738360087826,0.1470359,102100.0,102090.0,0.39073616]
[1738360088453,0.1470359,102100.0,102090.0,0.2980006]
[1738360089394,0.1420359,102100.0,102090.0,0.2980006]
[1738360091417,0.1420359,102100.0,102090.0,0.1510716]
[1738360091740,0.1420359,102100.0,102090.0,0.16106872]
[1738360092920,0.1420359,102100.0,102090.0,0.30799772]
[1738360093368,0.1370359,102100.0,102090.0,0.40535448]
[1738360094269,0.1370359,102100.0,102090.0,0.25842548]
[1738360094490,0.1370359,102100.0,102090.0,0.16106872]
[1738360094698,0.1470359,102100.0,102090.0,0.30799772]
[1738360095109,0.1470359,102100.0,102090.0,0.16106872]
[1738360096276,0.1470359,102100.0,102090.0,0.16006872]
[1738360096480,0.1470359,102100.0,102090.0,0.16906872]
[1738360096841,0.1470359,102100.0,102090.0,0.16006872]
[1738360097024,0.1470359,102100.0,102090.0,0.16306872]
[1738360097364,0.1470359,102100.0,102090.0,0.16406872]
[1738360097567,0.1470359,102100.0,102090.0,0.16106872]
[1738360100185,0.24427906,102100.0,102090.0,0.1510716]
[1738360100582,0.34163582,102100.0,102090.0,0.0010716]
[1738360101786,0.42403582,102100.0,102090.0,0.0010716]
[1738360105506,0.24427906,102100.0,102090.0,0.0010716]
[1738360109602,0.1470359,102100.0,102090.0,0.1480006]
[1738360109802,0.1470359,102100.0,102090.0,0.2337716]
[1738360110008,0.1470359,102100.0,102090.0,0.1510716]
[1738360111383,0.1470359,102100.0,102090.0,0.2980006]
[1738360112297,0.1470359,102100.0,102090.0,0.1510716]
[1738360112509,0.1470359,102100.0,102090.0,0.2980006]
[1738360112933,0.1470359,102100.0,102090.0,0.1510716]
[1738360113293,0.1470359,102100.0,102090.0,0.2980006]
[1738360113708,0.1470359,102100.0,102090.0,0.1510716]
[1738360114133,0.1470359,102100.0,102090.0,0.37624075]
[1738360115430,0.1470359,102100.0,102090.0,0.2980006]
[1738360115630,0.0001219,102100.0,102090.0,0.2980006]
[1738360116058,0.1470359,102100.0,102090.0,0.2980006]
[1738360117828,0.1470359,102100.0,102090.0,0.31733476]
[1738360118532,0.0001219,102100.0,102090.0,0.31733476]
[1738360118735,0.0001219,102100.0,102090.0,0.41469152]
[1738360120314,0.1470359,102100.0,102090.0,0.41469152]
[1738360120511,0.0001219,102100.0,102090.0,0.41469152]
[1738360120739,0.0001219,102100.0,102090.0,0.49779152]
[1738360123325,0.0001219,102100.0,102090.0,0.61803468]
[1738360123515,0.0001219,102100.0,102090.0,0.64844827]
[1738360124156,0.0001219,102100.0,102090.0,0.64744827]
[1738360124513,0.0001219,102100.0,102090.0,0.65444827]
[1738360124728,0.0001219,102100.0,102090.0,0.64744827]
[1738360125246,0.0001219,102100.0,102090.0,0.65644827]
[1738360125632,0.0001219,102100.0,102090.0,0.65744827]
[1738360126038,0.0001219,102100.0,102090.0,0.65644827]
[1738360126422,0.0001219,102100.0,102090.0,0.65944827]
[1738360127728,0.01543684,102120.0,102090.0,0.65944827]
[1738360127729,0.01543684,102120.0,102110.0,0.1028]
[1738360127936,0.01543684,102120.0,102110.0,0.37320231]
[1738360128151,0.01543684,102120.0,102110.0,0.37222316]
[1738360128359,0.01543684,102120.0,102110.0,0.40258031]
[1738360128586,0.01543684,102120.0,102110.0,0.42212316]
[1738360128807,0.01543684,102120.0,102110.0,0.4524641]
[1738360129305,0.01543684,102120.0,102110.0,0.42212316]
[1738360130322,0.01543684,102120.0,102110.0,0.42312316]
[1738360130522,0.01543684,102120.0,102110.0,0.42212316]
[1738360130921,0.01543684,102120.0,102110.0,0.43112316]
[1738360132349,0.01543684,102120.0,102110.0,0.43412316]
[1738360134402,0.01543684,102120.0,102110.0,0.71350053]
[1738360134826,0.01543684,102120.0,102110.0,0.70750053]
[1738360135034,0.01543684,102120.0,102110.0,0.71650053]
[1738360136211,0.01543684,102120.0,102110.0,0.72613042]
[1738360136616,0.01543684,102120.0,102110.0,0.74541509]
[1738360137575,0.01543684,102120.0,102110.0,0.61603772]
[1738360139580,0.01543684,102120.0,102110.0,0.74541509]
[1738360140723,0.01543684,102120.0,102110.0,0.73641509]
[1738360140858,0.01543684,102120.0,102110.0,0.73041509]
[1738360141037,0.01543684,102120.0,102110.0,0.74641509]
[1738360143696,0.01543684,102120.0,102110.0,0.76641509]
[1738360143917,0.01543684,102120.0,102110.0,0.79666408]
[1738360144326,0.01543684,102120.0,102110.0,0.61703772]
[1738360144732,0.01543684,102120.0,102110.0,0.56713772]
[1738360145181,0.01543684,102120.0,102110.0,0.58713772]
[1738360145387,0.01543684,102120.0,102110.0,0.71651509]
[1738360145585,6e-05,102130.0,102120.0,0.423986]
[1738360145790,6e-05,102130.0,102120.0,0.82191598]
[1738360145962,6e-05,102130.0,102120.0,0.72280654]
[1738360146607,6e-05,102130.0,102120.0,0.85218391]
[1738360146841,6e-05,102130.0,102120.0,0.87518391]
[1738360147038,6e-05,102130.0,102120.0,0.88418391]
[1738360147633,0.000122,102140.0,102130.0,0.59634837]
[1738360147832,0.000122,102140.0,102130.0,0.79094829]
[1738360148034,0.000122,102140.0,102130.0,0.82121622]
[1738360148925,0.000122,102140.0,102130.0,0.82726603]
[1738360150041,0.000122,102140.0,102130.0,0.83626603]
[1738360150453,0.000122,102140.0,102130.0,0.82726603]
[1738360150654,0.000122,102140.0,102130.0,0.83026603]
[1738360151063,0.000122,102140.0,102130.0,0.83826603]
[1738360151266,0.000122,102140.0,102130.0,0.8079981]
[1738360151474,0.000122,102140.0,102130.0,0.7999981]
[1738360151907,0.000122,102140.0,102130.0,0.50852073]
[1738360152536,0.000122,102140.0,102130.0,0.53152073]
[1738360152728,0.000122,102140.0,102130.0,0.38152073]
[1738360152860,0.000122,102140.0,102130.0,0.3922795]
[1738360153058,0.000122,102140.0,102130.0,0.5422795]
[1738360153265,0.000122,102140.0,102130.0,0.5512795]
[1738360153733,0.000122,102140.0,102130.0,0.5432795]
[1738360154144,0.000122,102140.0,102130.0,0.5502795]
[1738360154680,0.000122,102140.0,102130.0,0.75835687]
[1738360155545,0.000122,102140.0,102130.0,0.80675687]
[1738360155877,0.000122,102140.0,102130.0,0.8370303]
[1738360156080,0.000122,102140.0,102130.0,0.80740078]
[1738360156515,0.000122,102140.0,102130.0,0.8466818]
[1738360156933,0.000122,102140.0,102130.0,0.8396818]
[1738360157136,0.000122,102140.0,102130.0,0.8476818]
[1738360157776,0.000122,102140.0,102130.0,0.8396818]
[1738360157918,0.000122,102140.0,102130.0,0.8476818]
[1738360159395,0.000122,102140.0,102130.0,0.64690443]
[1738360159602,0.000122,102140.0,102130.0,0.56820443]
[1738360160026,0.000122,102140.0,102130.0,0.59120443]
[1738360160723,0.000122,102140.0,102130.0,0.7848818]
[1738360160961,0.000122,102140.0,102130.0,0.7918818]
[1738360161201,0.000122,102140.0,102130.0,0.8488818]
[1738360161819,0.000122,102140.0,102130.0,0.8418818]
[1738360162930,0.000122,102140.0,102130.0,0.8328818]
[1738360163252,0.000122,102140.0,102130.0,0.8418818]
[1738360165247,0.0498,102170.0,102160.0,0.296828]
[1738360165452,0.000122,102190.0,102180.0,0.146799]
[1738360165453,0.045422,102190.0,102180.0,0.146799]
[1738360165651,0.045422,102190.0,102180.0,0.14777754]
[1738360165879,0.045422,102190.0,102180.0,0.1780734]
[1738360166257,0.045422,102190.0,102180.0,0.2010734]
[1738360166481,0.045422,102190.0,102180.0,0.22202694]
[1738360166685,0.04591168,102190.0,102180.0,0.19902694]
[1738360167360,0.04591168,102190.0,102180.0,0.35073108]
[1738360168152,0.04591168,102190.0,102180.0,0.35373108]
[1738360169392,0.00061168,102190.0,102180.0,0.35373108]
[1738360171771,0.00061168,102190.0,102180.0,0.61056157]
[1738360171974,0.00061168,102190.0,102180.0,0.58035161]
[1738360172151,0.0154039,102220.0,102210.0,0.146756]
[1738360172333,1.08687148,102220.0,102210.0,0.22018621]
[1738360173311,1.08687148,102220.0,102210.0,0.14680581]
[1738360175203,1.21227148,102220.0,102210.0,0.14680581]
[1738360175687,1.35901348,102220.0,102210.0,4.981e-05]
[1738360176054,1.21227148,102220.0,102210.0,4.981e-05]
[1738360176256,1.21227148,102220.0,102210.0,0.14680581]
[1738360176928,1.35901348,102220.0,102210.0,0.14680581]
[1738360177441,1.45637024,102220.0,102210.0,4.981e-05]
[1738360180693,1.47315153,102220.0,102210.0,4.981e-05]
[1738360181263,1.47315153,102220.0,102210.0,0.0003058]
[1738360181508,1.47327343,102220.0,102210.0,0.0003058]
[1738360182274,1.46333214,102220.0,102210.0,0.0003058]
[1738360182471,1.47327343,102220.0,102210.0,0.0003058]
[1738360182675,1.48300517,102220.0,102210.0,0.0003058]
[1738360183491,1.47306388,102220.0,102210.0,0.0003058]
[1738360183838,1.48300517,102220.0,102210.0,0.0003058]
[1738360184331,1.58300517,102220.0,102210.0,0.0003058]
[1738360190572,1.57616517,102220.0,102210.0,0.0003058]
[1738360190770,1.58300517,102220.0,102210.0,0.0003058]
[1738360192905,1.38564841,102220.0,102210.0,0.0003058]
[1738360193734,1.48564841,102220.0,102210.0,0.0003058]
[1738360195462,1.36886712,102220.0,102210.0,0.0003058]
[1738360195666,1.38564841,102220.0,102210.0,0.0003058]
[1738360196271,0.39602009,102220.0,102210.0,0.0003058]
[1738360196468,1.36030322,102220.0,102210.0,0.0003058]
[1738360197400,1.35057148,102220.0,102210.0,0.0003058]
[1738360197595,1.26753148,102220.0,102210.0,0.0003058]
[1738360198241,1.21833148,102220.0,102210.0,0.0003058]
[1738360198928,1.31568824,102220.0,102210.0,0.0003058]
[1738360199147,1.26703148,102220.0,102210.0,0.0003058]
[1738360199346,1.21833148,102220.0,102210.0,0.0003058]
[1738360202484,0.24410706,102220.0,102210.0,0.0003058]
[1738360202687,0.24410706,102220.0,102210.0,0.0804058]
[1738360203246,0.24410706,102220.0,102210.0,0.2271618]
[1738360205259,0.0001219,102220.0,102210.0,0.2271618]
[1738360206235,0.0001219,102220.0,102210.0,0.3771618]
[1738360207266,0.0001219,102220.0,102210.0,0.4001618]
[1738360207635,0.0001219,102220.0,102210.0,0.4021618]
[1738360207838,0.0001219,102220.0,102210.0,0.3791618]
[1738360208253,0.1468639,102220.0,102210.0,0.3791618]
[1738360208743,0.0001219,102220.0,102210.0,0.3791618]
[1738360209127,0.0001219,102220.0,102210.0,0.3771618]
[1738360209565,0.1468639,102220.0,102210.0,0.3861618]
[1738360209768,0.1468639,102220.0,102210.0,0.2304058]
[1738360209978,0.21536609,102220.0,102210.0,0.2324058]
[1738360210185,0.31260925,102220.0,102210.0,0.0103058]
[1738360210435,0.24410706,102220.0,102210.0,0.0003058]
[1738360210648,0.24410706,102220.0,102210.0,0.1560618]
[1738360210854,0.1468639,102220.0,102210.0,0.1470618]
[1738360211052,0.1468639,102220.0,102210.0,0.0003058]
[1738360211408,0.24410706,102220.0,102210.0,0.0003058]
[1738360211816,0.24410706,102220.0,102210.0,0.0053058]
[1738360212197,0.24410706,102220.0,102210.0,0.0023058]
[1738360213070,0.24410706,102220.0,102210.0,0.0003058]
[1738360213309,0.24410706,102220.0,102210.0,0.0821058]
[1738360213885,0.24410706,102220.0,102210.0,0.0841058]
[1738360215445,0.24410706,102220.0,102210.0,0.2308618]
[1738360215827,0.24410706,102220.0,102210.0,0.0841058]
[1738360218405,0.24410706,102220.0,102210.0,0.0023058]
[1738360218642,0.34146382,102220.0,102210.0,0.0023058]
[1738360219589,0.41736382,102220.0,102210.0,0.0023058]
[1738360220298,0.24410706,102220.0,102210.0,0.0023058]
[1738360220745,0.24410706,102220.0,102210.0,0.0003058]
[1738360221514,0.38254835,102220.0,102210.0,0.0003058]
[1738360222728,0.52260706,102220.0,102210.0,0.0003058]
[1738360222931,0.66560706,102220.0,102210.0,0.0003058]
[1738360223144,0.76296382,102220.0,102210.0,0.0003058]
[1738360223553,0.74296382,102220.0,102210.0,0.0103058]
[1738360223785,0.63674511,102220.0,102210.0,0.0103058]
[1738360223922,0.65674511,102220.0,102210.0,0.0103058]
[1738360224526,0.76980382,102220.0,102210.0,0.0103058]
[1738360224752,0.74980382,102220.0,102210.0,0.0103058]
[1738360224964,0.76980382,102220.0,102210.0,0.0103058]
[1738360225164,0.76980382,102220.0,102210.0,8e-07]
[1738360225165,0.74980382,102220.0,102210.0,8e-07]
[1738360225583,0.76980382,102220.0,102210.0,8e-07]
[1738360226007,0.74296382,102220.0,102210.0,8e-07]
[1738360226208,0.65244706,102220.0,102210.0,8e-07]
[1738360227614,0.64560706,102220.0,102210.0,8e-07]
[1738360227768,0.65244706,102220.0,102210.0,8e-07]
[1738360228231,0.64560706,102220.0,102210.0,0.00025658]
[1738360228432,0.74296382,102220.0,102210.0,0.00025658]
[1738360228658,0.76980382,102220.0,102210.0,0.00025658]
[1738360228889,0.74980382,102220.0,102210.0,0.00025658]
[1738360232304,0.74574641,102220.0,102210.0,0.00025658]
[1738360232517,0.75258641,102220.0,102210.0,0.00025658]
[1738360233189,0.69358641,102220.0,102210.0,0.00025658]
[1738360233369,0.67358641,102220.0,102210.0,0.00025658]
[1738360233518,0.66674641,102220.0,102210.0,0.00025658]
[1738360233751,0.31317094,102220.0,102210.0,0.00025658]